[Event "Bremer Silvester Open-A 2024"]
[Site "Bremen"]
[Date "2024.12.29"]
[Round "5.8"]
[White "Bundan, Edward"]
[Black "Rust-Lux, Klaus"]
[Result "1-0"]
[ECO "E85"]
[WhiteElo "1822"]
[BlackElo "2072"]
[Annotator "NA RC"]
[PlyCount "103"]
[EventDate "2024.12.16"]
[EventType "swiss"]
[EventCountry "GER"]
[SourceTitle "playchess.com"]
[Source "ChessBase"]
[SourceQuality "1"]
[TimeControl "5400+30"]

1. d4 {[%emt 0:00:03]} g6 {[%emt 0:00:05]} 2. c4 {[%emt 0:00:10]} Bg7 {[%emt 0:00:07]} 3. Nc3 {[%emt 0:00:27]} d6 {[%emt 0:00:12]} 4. e4 {[%emt 0:00:30]} Nc6 {[%emt 0:00:45]} 5. Be3 {[%emt 0:07:26]} e5 {[%emt 0:00:39]} 6. Nge2 {[%emt 0:09:26]} Nf6 {[%emt 0:00:51]} 7. d5 {[%emt 0:02:31]} Ne7 {[%emt 0:05:07]} 8. f3 {[%emt 0:02:05]} O-O {[%emt 0:00:16]} 9. Qd2 {[%emt 0:04:47]} Nd7 {[%emt 0:00:53]} 10. O-O-O {[%emt 0:03:10]} f5 {[%emt 0:00:54]} 11. Kb1 {[%emt 0:03:34]} a6 {[%emt 0:03:36]} 12. Nc1 {[%emt 0:01:24]} Nf6 {[%emt 0:01:57]} 13. Be2 {[%emt 0:13:40]} Bd7 {[%emt 0:01:35]} 14. Rdg1 {[%emt 0:07:23]} b5 {[%emt 0:00:58]} 15. a3 {[%emt 0:00:57]} Qb8 {[%emt 0:02:35]} 16. c5 {[%emt 0:02:48]} b4 {[%emt 0:02:25]} 17. axb4 {[%emt 0:00:52]} Qxb4 {[%emt 0:00:30]} 18. c6 {[%emt 0:00:42]} Bc8 {[%emt 0:00:35]} 19. N1a2 {[%emt 0:02:43]} Qb8 {[%emt 0:00:18]} 20. h3 {[%emt 0:01:43]} f4 {[%emt 0:02:43]} 21. Bf2 {[%emt 0:00:43]} Nh5 {[%emt 0:00:12]} 22. Rc1 {[%emt 0:03:53]} a5 {[%emt 0:00:54]} 23. Bb5 {[%emt 0:06:28]} h6 {[%emt 0:04:14]} 24. Rhd1 {[%emt 0:01:19]} Bf6 {[%emt 0:00:56]} 25. Qc2 {[%emt 0:02:16]} Ng3 {[%emt 0:00:32]} 26. Qa4 {[%emt 0:01:31]} Kg7 {[%emt 0:03:48]} 27. Ne2 {[%emt 0:02:59]} Bh4 {[%emt 0:01:40]} 28. Nxg3 {[%emt 0:00:33]} fxg3 {[%emt 0:01:23]} 29. Be3 {[%emt 0:00:25]} Ba6 {[%emt 0:00:31]} 30. Bxa6 {[%emt 0:01:18]} Rxa6 {[%emt 0:00:11]} 31. Rc3 {[%emt 0:00:28]} Nc8 {[%emt 0:06:02]} 32. Qc4 {[%emt 0:01:57]} Qa8 {[%emt 0:04:02]} 33. Rb3 {[%emt 0:01:14]} Bd8 {[%emt 0:02:25]} 34. Rb8 {[%emt 0:02:23]} Qxb8 {[%emt 0:01:21]} 35. Qxa6 {[%emt 0:00:08]} Nb6 {[%emt 0:52:48]} 36. Bxb6 {[%emt 0:14:34]} Qxb6 {[%emt 0:00:00]} 37. Qxb6 {[%emt 0:00:00]} cxb6 {[%emt 0:00:00]} 38. Nc3 {[%emt 0:00:00]} Bc7 {[%emt 0:00:00]} 39. Nb5 {[%emt 0:00:00]} Rf7 {[%emt 0:00:00]} 40. Ka2 {[%emt 0:00:00]} Kf8 {[%emt 0:00:00]} 41. Ka3 {[%emt 0:00:00]} Ke8 {[%emt 0:00:00]} 42. Ka4 {[%emt 0:00:00]} Kd8 {[%emt 0:00:00]} 43. b4 {[%emt 0:00:00]} Kc8 {[%emt 0:00:00]} 44. bxa5 {[%emt 0:00:00]} bxa5 {[%emt 0:00:00]} 45. Nxc7 {[%emt 0:00:00]} Rxc7 {[%emt 0:00:00]} 46. Rb1 {[%emt 0:00:00]} Rf7 {[%emt 0:00:00]} 47. Kb5 {[%emt 0:00:00]} g5 {[%emt 0:00:00]} 48. Kb6 {[%emt 0:00:00]} h5 {[%emt 0:00:00]} 49. Ra1 {[%emt 0:00:00]} g4 {[%emt 0:00:00]} 50. Rxa5 {[%emt 0:00:00]} Kb8 {[%emt 0:00:00]} 51. fxg4 {[%emt 0:00:00]} hxg4 {[%emt 0:08:00]} 52. hxg4 {[%emt 0:08:00]} 1-0